Cogmind - Beta 14 @@@ ROGUE MODE // 2024.08.10 @ 22:23:23 Player: lsend Result: Destroyed by QW-U5K(x) with Makeshift Spear Performance ------------- Evolutions (0) 0 Regions Visited (4) 800 Robots Destroyed (13) 65 Value Destroyed (344) 344 Prototype IDs (13) 260 Alien Tech Used (0) 0 Bonus (300) 300 TOTAL SCORE: 1769 Bonus ------- Registered with UFD 300 Cogmind --------- Core Integrity 0/250 Matter 300/300 Energy 100/100 System Corruption 0% Temperature Cool (0) Movement Core (50) Location -8/Scraptown Parts ------- > --- POWER (1) -------- (None) > --- PROPULSION (2) --- (None) > --- UTILITY (2) ------ Improved Signal Interpreter A0-MCA's Component Scanner > --- WEAPON (2) ------- Heavy Mace > --- INVENTORY (5) ---- Flight Unit Flight Unit Flight Unit Flight Unit Small Storage Unit Peak State ------------ > --- POWER ------------ (None) > --- PROPULSION ------- Light Treads Light Treads > --- UTILITY ---------- Improved Signal Interpreter A0-MCA's Component Scanner > --- WEAPON ----------- Heavy Mace > --- INVENTORY -------- Flight Unit Flight Unit Flight Unit Flight Unit Small Storage Unit [Rating: 17] Favorites ----------- Power None Propulsion Light Treads Treads Light Treads Utility Improved Signal Interpreter Processor Improved Signal Interpreter Weapon Grenade Launcher Launcher Grenade Launcher Impact Weapon Heavy Mace Build | -11 -10 -10 -8 -8 ------- Run | Yrd Mat Sub Rec Scr Slots Evolved . | . . . . . Power . | . . . . . Propulsion . | . . . . . Utility . | . . . . . Weapon . | . . . . . Parts Attached 7 | 2 1 . 1 3 Power . | . . . . . Engine . | . . . . . Core . | . . . . . Reactor . | . . . . . Propulsion 2 | 2 . . . . Treads 2 | 2 . . . . Leg . | . . . . . Wheel . | . . . . . Hover . | . . . . . Flight . | . . . . . Utility 2 | . . . . 2 Device . | . . . . . Storage . | . . . . . Processor 2 | . . . . 2 Hackware . | . . . . . Protection . | . . . . . Artifact . | . . . . . Weapon 3 | . 1 . 1 1 Energy Gun . | . . . . . Energy Cannon . | . . . . . Ballistic Gun . | . . . . . Ballistic Cannon . | . . . . . Launcher 1 | . 1 . . . Special Weapon . | . . . . . Impact Weapon 2 | . . . 1 1 Slashing Weapon . | . . . . . Piercing Weapon . | . . . . . Special Melee Weapon . | . . . . . Unidentified Prototypes . | . . . . . Parts Lost 3 | . . 1 . 2 Power . | . . . . . Propulsion 2 | . . . . 2 Utility . | . . . . . Weapon 1 | . . 1 . . Highest Loss Streak 2 | . . 1 . 2 To Critical Strikes . | . . . . . Average Slot Usage (%) 45 | . 41 41 34 50 Treads 27 | . 28 28 28 27 Processor 4 | . . . . 8 Launcher 6 | . 13 13 . . Impact Weapon 7 | . . . 6 14 Peak Build Rating 17 | 2 3 3 4 17 Average Rating 4 | 1 2 2 3 7 On Entrance 2 | . 2 3 2 4 Naked Turns . | . . . . . Heaviest Build 3 | . 3 3 2 3 Greatest Support 3 | 3 3 3 3 3 Greatest Overweight (x) . | . . . . . Average Overweight (x) . | . . . . . Largest Inventory Capacity 5 | 5 5 5 5 5 Average Capacity 5 | 5 5 5 5 5 Most Carried 5 | 1 5 5 5 5 Average Carried 4 | . 4 5 5 4 Final Capacity 5 | 5 5 5 5 5 Final Carried 5 | 1 5 5 5 5 Class Distribution -------------------- 100% | Mutant Dominant Class ---------------- Mutant | -10/Materials Mutant | -10/Subcaves Mutant | -8/Recycling Mutant | -8/Scraptown Resources | -11 -10 -10 -8 -8 ----------- Run | Yrd Mat Sub Rec Scr Matter Collected 515 | 204 78 76 127 30 Remotely . | . . . . . Salvage Created 157 | . 118 39 . . Parts 16 | . 6 10 . . Haulers Intercepted . | . . . . . Recyclers Shooed 1 | . 1 . . . Parts Field Recycled . | . . . . . Retrieved Matter . | . . . . . Parts Self-Destructed 6 | . . 6 . . Prevented . | . . . . . Kills | -11 -10 -10 -8 -8 ------- Run | Yrd Mat Sub Rec Scr Combat Hostiles Destroyed 11 | . 5 6 . . AOE 11 | . 5 6 . . Classes Destroyed 5 | . 2 3 . . Worker 1 | . 1 . . . Turret 1 | . . 1 . . Swarmer 4 | . . 4 . . Grunt 5 | . 5 . . . Subdweller 2 | . . 2 . . Best Kill Streak 5 | . 3 5 . . Combat Bots Only 4 | . 3 4 . . Max Kills in Single Turn 3 | . 3 2 . . Gunslinging . | . . . . . Exploded 2 | . 2 2 . . Melee . | . . . . . Uniques/NPCs Destroyed . | . . . . . Combat | -11 -10 -10 -8 -8 -------- Run | Yrd Mat Sub Rec Scr Hostile Shots Fired 69 | . 19 39 . 11 Missed 23 | . 6 14 . 3 Damage Taken 597 | . 213 236 . 148 Core 256 | . 109 76 . 71 Absorbed by Shields . | . . . . . Core Remaining (%) 100 | 100 . . . . Volleys Fired 25 | . 11 14 . . Largest 1 | . 1 1 . . Hottest 30 | . 30 30 . . Shots Fired 25 | . 11 14 . . Gun . | . . . . . Cannon . | . . . . . Launcher 25 | . 11 14 . . Special . | . . . . . Kinetic . | . . . . . Thermal . | . . . . . Explosive 25 | . 11 14 . . Electromagnetic . | . . . . . Robot Hit Streak 5 | . 3 5 . . Robot Miss Streak 2 | . 2 1 . . Penetration Max . | . . . . . Secondary Targets . | . . . . . Shots Hit Robots 14 | . 6 6 . 2 Core Hits 25 | . 11 14 . . Critical Kills . | . . . . . Critical Parts Destroyed 1 | . . . . 1 Critical Strikes 1 | . . . . 1 Smash 1 | . . . . 1 Melee Attacks 3 | . . . . 3 Impact 3 | . . . . 3 Slashing . | . . . . . Piercing . | . . . . . Sneak Attacks . | . . . . . Combat Hostiles . | . . . . . Follow-up Attacks . | . . . . . Damage Inflicted 1131 | . 542 575 . 14 Guns . | . . . . . Cannons . | . . . . . Explosions 1117 | . 542 575 . . Melee 14 | . . . . 14 Ramming . | . . . . . Kinetic . | . . . . . Thermal . | . . . . . Explosive 1117 | . 542 575 . . Electromagnetic . | . . . . . Impact 14 | . . . . 14 Slashing . | . . . . . Piercing . | . . . . . Highest Corruption . | . . . . . Average Corruption . | . . . . . Corruption Purged . | . . . . . Corruption Blocked . | . . . . . Overload Shots . | . . . . . Overflow Damage 6 | . . . . 6 Projectiles . | . . . . . Explosions . | . . . . . Melee 6 | . . . . 6 Knockbacks . | . . . . . Impact . | . . . . . Kinetic . | . . . . . Secondary . | . . . . . Self-Inflicted Damage 56 | . 39 17 . . Shots 3 | . 2 1 . . Rammed . | . . . . . Targets Rammed . | . . . . . Kicked . | . . . . . Crushed . | . . . . . Highest Temperature 5 | . 5 . . . Average Temperature 5 | . 5 . . . Received Heat Transfer 219 | . 93 126 . . Siege Activations . | . . . . . Robots Corrupted . | . . . . . Combat Hostiles . | . . . . . Parts Fried . | . . . . . Impact Corruptions 1 | . . . . 1 Robots Melted . | . . . . . Combat Hostiles . | . . . . . Parts Melted . | . . . . . Heat Transferred . | . . . . . Parts Sabotaged . | . . . . . Parts Stolen . | . . . . . Parts Stripped . | . . . . . Power Chain Reactions . | . . . . . Alert | -11 -10 -10 -8 -8 ------- Run | Yrd Mat Sub Rec Scr Peak Influence 124 | . 124 . 57 . Initial 57 | . . . 57 . Average 68 | . 73 . 57 . Maximum Alert Level . | . . . . . Low Security (%) 100 | 100 100 . 100 . Level 1 . | . . . . . Level 2 . | . . . . . Level 3 . | . . . . . Level 4 . | . . . . . Level 5 . | . . . . . High Security . | . . . . . Max Security . | . . . . . Squads Dispatched 1 | . 1 . . . Investigation . | . . . . . Extermination . | . . . . . Reinforcement 1 | . 1 . . . Assault . | . . . . . Garrison . | . . . . . Intercept . | . . . . . Searches Triggered . | . . . . . Construction Impeded . | . . . . . Haulers Reinforced . | . . . . . Active Scanning Responses . | . . . . . Cargo Convoy Interrupts . | . . . . . Stealth | -11 -10 -10 -8 -8 --------- Run | Yrd Mat Sub Rec Scr Distress Signals 1 | . 1 . . . Communications Jammed . | . . . . . Distress Signals . | . . . . . Times Spotted 22 | . 12 7 . 3 Peak Tracking Total 5 | . 5 4 . 3 Tactical Retreats 2 | . 2 . . . Traps | -11 -10 -10 -8 -8 ------- Run | Yrd Mat Sub Rec Scr Traps Triggered . | . . . . . Indirectly . | . . . . . Trap Hack Attempts . | . . . . . Triggered . | . . . . . Disarmed . | . . . . . Reprogrammed . | . . . . . Reused . | . . . . . Traps Extracted . | . . . . . Installed . | . . . . . Triggered . | . . . . . Machines | -11 -10 -10 -8 -8 ---------- Run | Yrd Mat Sub Rec Scr Machines Disabled 4 | . 1 3 . . Max in Single Turn 3 | . 1 3 . . Machines Repaired . | . . . . . Machines Dismantled . | . . . . . Machines Sabotaged . | . . . . . Overloaded Fab Kills . | . . . . . Hacking | -11 -10 -10 -8 -8 --------- Run | Yrd Mat Sub Rec Scr Machines Accessed 13 | . 1 . 5 7 Terminals 3 | . 1 . 2 . Fabricators . | . . . . . Repair Stations . | . . . . . Recycling Units 3 | . . . 3 . Scanalyzers . | . . . . . Garrison Access . | . . . . . Total Hacks 60 | . 5 . 8 47 Successful 55 | . 3 . 5 47 Failed 5 | . 2 . 3 . Catastrophic . | . . . . . Database Lockouts . | . . . . . Manual 2 | . . . 2 . Terminals 9 | . 5 . 4 . Fabricators . | . . . . . Repair Stations . | . . . . . Recycling Units 4 | . . . 4 . Scanalyzers . | . . . . . Garrison Access . | . . . . . Terminal Hacks 51 | . 3 . 1 47 Record 42 | . . . . 42 Robot Analysis 4 | . . . . 4 Emergency Access Points 1 | . 1 . . . Unreport Threat 1 | . 1 . . . Locate Traps 1 | . 1 . . . Zone Layout 1 | . . . 1 . Derelict Proto ID Bank 1 | . . . . 1 Fabricator Hacks . | . . . . . Repair Station Hacks . | . . . . . Recycling Unit Hacks 3 | . . . 3 . Retrieve Components 3 | . . . 3 . Scanalyzer . | . . . . . Garrison Access Hacks . | . . . . . Unauthorized Hacks 1 | . . . 1 . Terminals 1 | . . . 1 . Botnet 1 | . . . 1 . Fabricators . | . . . . . Repair Stations . | . . . . . Recycling Units . | . . . . . Scanalyzers . | . . . . . Garrison Access . | . . . . . Data Cores Recovered . | . . . . . Used . | . . . . . Hacking Detections 4 | . 1 . 3 . Full Trace Events . | . . . . . Feedback Events . | . . . . . Feedback Blocked . | . . . . . Robot Schematics Acquired . | . . . . . Robots Built . | . . . . . Authchips . | . . . . . Time . | . . . . . Total Robot Build Rating . | . . . . . Part Schematics Acquired . | . . . . . Parts Built . | . . . . . Authchips . | . . . . . Time . | . . . . . Total Part Build Rating . | . . . . . Parts Repaired . | . . . . . Time . | . . . . . Parts Recycled . | . . . . . Recycled Matter . | . . . . . Retrieved Matter . | . . . . . Retrieved Components 2 | . . . 2 . Parts Scanalyzed . | . . . . . Part Schematics Acquired . | . . . . . Parts Damaged . | . . . . . Bothacking | -11 -10 -10 -8 -8 ------------ Run | Yrd Mat Sub Rec Scr Used RIF Installer . | . . . . . Robots Hacked . | . . . . . Non-combat . | . . . . . Combat . | . . . . . Robot Hacks Applied . | . . . . . Relay Couplers Released . | . . . . . Fabnet Peak Effective % . | . . . . . Robots Rewired . | . . . . . Allies Hacked . | . . . . . Hacks Repelled . | . . . . . Allies | -11 -10 -10 -8 -8 -------- Run | Yrd Mat Sub Rec Scr Total Allies . | . . . . . Largest Group . | . . . . . Highest-Rated Group . | . . . . . Highest-Rated Ally . | . . . . . Total Orders . | . . . . . Ally Attacks . | . . . . . Total Damage . | . . . . . Kills . | . . . . . Allies Corrupted . | . . . . . Allies Melted . | . . . . . Intel | -11 -10 -10 -8 -8 ------- Run | Yrd Mat Sub Rec Scr Robot Analysis Total 4 | . . . . 4 Derelict Logs Recovered 1 | . . 1 . . Drone Launches . | . . . . . Drone Recoveries . | . . . . . Exploration | -11 -10 -10 -8 -8 ------------- Run | Yrd Mat Sub Rec Scr Turns Passed 1629 | 19 507 229 93 781 Spaces Moved 2350 | 31 251 402 182 1484 Core 2350 | 31 251 402 182 1484 Treads . | . . . . . Legs . | . . . . . Wheels . | . . . . . Hover . | . . . . . Flight . | . . . . . Fastest Speed 50 | 50 50 50 50 50 Average Speed 50 | 50 50 50 50 50 Slowest Speed 50 | 50 50 50 50 50 Overloaded Moves . | . . . . . Propulsion Burnouts . | . . . . . Robots Hopped . | . . . . . Cave-ins Triggered . | . . . . . Exploration Rate (%) 43 | 3 42 37 41 92 Regions Visited 4 Branch Regions 3 Pre-discovered Areas 6 | . . 1 . 5 Known Exits Taken . | . . . . . Unknown Exits Taken 4 | 1 1 1 1 . Scrap Searched 5 | . . . . 5 Spaces Dug 1 | . . . . 1 Terrain Destroyed 76 | . 15 60 . 1 Melee 1 | . . . . 1 Projectile . | . . . . . AOE 75 | . 15 60 . . Terrain Rammed . | . . . . . Walls Destroyed . | . . . . . Machines Disabled . | . . . . . Actions | -11 -10 -10 -8 -8 --------- Run | Yrd Mat Sub Rec Scr Total 2768 | 33 620 415 182 1518 Wait 376 | . 354 . . 22 Move 2346 | 30 250 401 181 1484 Hop . | . . . . . Pick Up 7 | 1 4 . . 2 Fast Attach 8 | 2 1 . 1 4 Attach . | . . . . . Detach . | . . . . . Swap . | . . . . . Drop 3 | . . . . 3 Fire 25 | . 11 14 . . Melee 3 | . . . . 3 Ram . | . . . . . Kick . | . . . . . Crush . | . . . . . Escape Stasis . | . . . . . Rewire . | . . . . . Trap . | . . . . . Miscellaneous . | . . . . . Route ------- -11/Scrapyard -10/Materials (discovered 3 exits: [*Mat] / [*Min] / [*Sub]) -10/Subcaves -8/Recycling -8/Scraptown (discovered 2 exits: *Fac x2) History --------- Turn | Location | Event 4 | -11/Scrapyard | Discovered new exit (range 16) 20 | -11/Scrapyard | Entered Materials 86 | -10/Materials | Discovered new exit (range 10) 120 | -10/Materials | Discovered new exit (range 14) 301 | -10/Materials | Build established: Mutant 518 | -10/Materials | Discovered new exit (range 12) 527 | -10/Materials | Entered Subcaves 543 | -10/Subcaves | Learned location of Zion (-7) 610 | -10/Subcaves | Core integrity fell below 50% 614 | -10/Subcaves | Ambushed by Subdweller buried in earth 654 | -10/Subcaves | A swath of the cavern ceiling suddenly collapsed 741 | -10/Subcaves | Discovered new exit (range 13) 756 | -10/Subcaves | Entered Recycling 837 | -8/Recycling | Scanned before Scraplab entrance 844 | -8/Recycling | Entered Scraplab 848 | -8/Recycling | Discovered new exit (range 2) 849 | -8/Recycling | Entered Scraptown 953 | -8/Scraptown | Discovered new exit (range 3) 997 | -8/Scraptown | Visited Assassins FH 1014 | -8/Scraptown | Visited Red Mages 1025 | -8/Scraptown | Found Relay Coupler [Proto] 1035 | -8/Scraptown | Visited Awakened 1052 | -8/Scraptown | Visited Cyclists 1074 | -8/Scraptown | Visited Symbiants 1083 | -8/Scraptown | Visited UFD Registry 1084 | -8/Scraptown | Registered with UFD as "Scrapsourcer" 1101 | -8/Scraptown | Entered Cyclist Reading Room 1242 | -8/Scraptown | Visited Supply Room 1250 | -8/Scraptown | Visited IN-MT5's Study 1272 | -8/Scraptown | Visited Infowarlord's Domain 1284 | -8/Scraptown | Visited Chapter 10 1375 | -8/Scraptown | Visited DA-N13 Charitable Foundation 1382 | -8/Scraptown | Found DCF Scrap (32 items) 1418 | -8/Scraptown | Visited Scrap Suit Storage 1437 | -8/Scraptown | Visited Science Guys 1471 | -8/Scraptown | Discovered new exit (range 3) 1504 | -8/Scraptown | Identified exit to Factory 1521 | -8/Scraptown | Visited Analyses Database 1533 | -8/Scraptown | Visited A0-MCA Data Center 1536 | -8/Scraptown | Given a B- rating by A0-MCA 1540 | -8/Scraptown | Found A0-MCA's Component Scanner 1580 | -8/Scraptown | Visited Cartography Club 1618 | -8/Scraptown | Attacked by Scraptown defenders 1621 | -8/Scraptown | Core integrity fell below 20% 1621 | -8/Scraptown | Learned location of Recycling (-8) 1621 | -8/Scraptown | Learned location of Lower Caves (-6) 1621 | -8/Scraptown | Learned location of Upper Caves (-4) 1621 | -8/Scraptown | Learned 16 Materials zone layouts 1621 | -8/Scraptown | Learned 8 Factory zone layouts 1621 | -8/Scraptown | Learned 12 Factory zone layouts 1621 | -8/Scraptown | Learned 16 Factory zone layouts 1621 | -8/Scraptown | Learned 12 Research zone layouts 1621 | -8/Scraptown | Learned 4 Storage zone layouts 1621 | -8/Scraptown | Learned 4 Recycling zone layouts 1621 | -8/Scraptown | Learned 16 Lower Caves zone layouts 1621 | -8/Scraptown | Learned 20 Lower Caves zone layouts 1621 | -8/Scraptown | Learned location of 2 exits from Research 1621 | -8/Scraptown | Learned 20 Proximity Caves zone layouts 1621 | -8/Scraptown | Learned location of 2 exits from Upper Caves 1621 | -8/Scraptown | Learned location of 1 exit from Proximity Caves 1630 | -8/Scraptown | Destroyed by QW-U5K(x) with Makeshift Spear Last Messages --------------- Upper Caves exits. Data stored: Upper Caves exits (x2). >>Record "EXITS/PRO=1" Proximity Caves exit. Data stored: Proximity Caves exits (x1). >>Record "ACCESS/UPP=1" Upper Caves entrance. Data stored: Upper Caves entrances (x1). >>Record "ACCESS/PRO=3" Proximity Caves entrances. Data stored: Proximity Caves entrances (x3). >>Record "ACCESS/ARM=1" Armory entrance. Data stored: Armory entrances (x1). 01626_ QW-U5K(x) suffers critical hit (Smash). 01626_ Destroyed VSS Leg. 01626_ QW-U5K(x) system corrupted by crushing effect. 01626_ Lgt. Treads destroyed. 01629_ Bolt penetrates Wall. 01630_ Lgt. Treads destroyed. Map ----- +----------------------------------------------------+ | ?????????????????????????????????????????????????? | | ?????????????????????????????????????????????????? | | ?????????????????????????????????????????????????? | | #####???##???????????????????????????????????????? | | """""??""#???????????????????????????????????????? | | " ?? "#???????????????????????????????????????? | | """ "#???????????????????????????????????????? | | " "" "#???????????????????????????????????????? | | " " "#???????????????????????????????????????? | | " "#???????????????????????????????????????? | | "" """"""#???????????????????????????????????????? | | #???????????????????????????????????????? | | #???????????????????????????????????????? | | #???????????????????????################# | | """"#####??????????????????????#"""##"""##""|##"" | | !%"#??????????????????????????#"" ##""!##""|##!! | | !/""#??????????????????????????#"" | | """#??????????????????????????# | | """#??????????????????????????################## | | """""#???????????????????????????????????????????? | | ######???????????????????????????????????????????? | | ??????????????????????????###???#########????????? | | ???????????????????????#### #???#"""""""""#??????? | | ???#########???????????# #!#???#"""""""""#??????? | | ???#"""""""#???????????##x# #???#"""""""""#??????? | | ???" " "#?????????###x@ #???#"""""""""#??##### | | ####" "#?????????#Xh### #???#""" """#??#"""" | | ## " ""#?????????### ####???#""" """#??#" X | | ## " """#?????????# #???#"!" """#??#" | | ## " ""#???####### ######???#""" """"#??#"" | | ## " "#???# #???#""" """#??# | | ##""" "#???# #???# "#??# | | ## #???########### ##???###### ####??##### | | ### ##########???????##### ########### ########### | | #???????#"""" """"""""""" """"""""""" | | #???????#" | | #???????#" | | #???????#" | | #???????#" | | #### #???#####" | | ???# #???#"""" """""""""""""""""""""" | | #??# #???#"""" """""""""""""""""""""" | | #??# #???#"""" ""###### ############ | | #??# #???#"""" ""# ##????? | | #??# #???#"""" ""# X"#????? | | #??# ###?#"""" ""# "" "" ##????? | | #??# ""#"#"""" ""# "" "" X"#????? | | #??# """"#"""" ""# " " ####### | | #??# ""#######" "" "" | | #??# ###?????#" "" "" | +----------------------------------------------------+ Best States ------------- Heat Dissipation 25 Energy Generation 5 Energy Capacity 100 Matter Stores 300 Matter Capacity 300 Sight Range 16 Terrain Scan Density 10 Evasion (%) 50 Item Schematics ----------------- None Robot Schematics ------------------ None Fabricated ------------ Nothing Alien Tech Used ----------------- None Achievements -------------- None Challenges ------------ None Game ------ Seed ProcessingGlidesysUnit Manual? 0 Play Time 00:29:41 Cumulative 671.0 hours Start 2024.08.10 @ 12:28:57 End 2024.08.10 @ 22:23:23 Sessions 3 Manual Loads 0 Difficulty Rogue Special Mode None Game No. 521 Rogue 521 Adventurer 0 Explorer 0 Win Type - Total 172 Types 97/9/49/6/3/2/4/1/1 Lore% 75 Gallery% 86 Achievement% 84 Wizard Run 0 Options --------- Layout 0 ASCII 1 Keyboard 0 Movement Vi Keybinds 0 Fullscreen 1 Font 24/Smallcaps Map View 76x50 Zoom Use 0% Tactical HUD 1 Map Filters NONE Filters NONE Steam X RUN: 3cd4d47e-f32f-49d4-94c8-3fe2fbb5967f